bitfinex/quotes_SOLUSD_20250118
["timestamp","ask_amount","ask_price","bid_price","bid_amount"]
[1737174108036,34.05615046,225.27,225.17,34.05615046]
[1737174108247,34.05615046,225.29,225.19,34.05615046]
[1737174109532,34.05615046,225.27,225.15,34.05615046]
[1737174109716,34.05615046,225.27,225.18,20.0]
[1737174109920,34.05615046,225.25,225.18,20.0]
[1737174110329,34.05615046,225.25,225.15,34.05615046]
[1737174110636,34.05615046,225.27,225.15,34.05615046]
[1737174111723,34.05615046,225.31,225.19,34.05615046]
[1737174111924,34.05615046,225.25,225.15,34.05615046]
[1737174112119,34.05615046,225.21,225.12,34.05615046]
[1737174112325,34.05615046,225.21,225.1,34.05615046]
[1737174112642,0.66641953,225.27,225.04,7.56]
[1737174112821,34.05615046,225.22,225.12,34.05615046]
[1737174113143,22.258921,225.37,225.18,34.05615046]
[1737174113144,0.66641953,225.27,225.18,34.05615046]
[1737174113317,34.05615046,225.3,225.2,34.05615046]
[1737174113517,0.66641953,225.29,225.2,34.05615046]
[1737174113840,34.05615046,225.32,225.22,34.05615046]
[1737174114135,34.05615046,225.34,225.24,34.05615046]
[1737174114337,0.063,225.27,225.22,34.05615046]
[1737174114934,0.063,225.27,225.26,34.05615046]
[1737174115317,0.063,225.27,225.22,34.05615046]
[1737174115516,0.063,225.27,225.09,4.3966]
[1737174115517,0.063,225.27,225.1,1.4119948]
[1737174115744,0.063,225.27,225.24,34.05615046]
[1737174115935,0.063,225.27,225.26,34.05615046]
[1737174116719,0.063,225.27,225.26,68.11230092]
[1737174116922,0.063,225.37,225.29,20.0]
[1737174117130,0.063,225.37,225.36,34.05615046]
[1737174118228,0.66641953,225.5,225.36,68.11230092]
[1737174118431,0.72941953,225.54,225.47,34.05615046]
[1737174118943,34.05615046,225.52,225.43,34.05615046]
[1737174119149,34.78556999,225.54,225.45,34.05615046]
[1737174119355,0.72941953,225.54,225.45,34.05615046]
[1737174119525,0.72941953,225.54,225.47,34.05615046]
[1737174120018,0.063,225.54,225.47,34.05615046]
[1737174120213,34.78556999,225.54,225.45,34.05615046]
[1737174120421,0.72941953,225.54,225.47,34.05615046]
[1737174121141,0.063,225.54,225.49,34.05615046]
[1737174121442,0.063,225.54,225.47,34.05615046]
[1737174121626,0.72941953,225.54,225.49,34.05615046]
[1737174121830,0.063,225.54,225.49,34.05615046]
[1737174122358,0.063,225.54,225.52,34.05615046]
[1737174123665,0.063,225.63,225.55,20.0]
[1737174123958,0.063,225.63,225.62,34.05615046]
[1737174124960,0.063,225.63,225.37,12.059]
[1737174125273,0.063,225.63,225.62,34.05615046]
[1737174126154,0.063,225.63,225.61,34.05615046]
[1737174126546,0.063,225.63,225.54,20.0]
[1737174126747,0.063,225.63,225.62,34.05615046]
[1737174127155,0.063,225.77,225.62,34.05615046]
[1737174127156,0.063,225.77,225.65,20.0]
[1737174127357,0.063,225.77,225.76,34.05615046]
[1737174127569,0.063,225.77,225.71,34.05615046]
[1737174127750,0.063,225.77,225.56,0.6644527]
[1737174127751,34.05615046,225.72,225.57,34.05615046]
[1737174127948,34.72256999,225.71,225.61,34.05615046]
[1737174128251,0.66641953,225.71,225.63,34.05615046]
[1737174128448,0.66641953,225.72,225.65,34.05615046]
[1737174128768,0.66641953,225.74,225.64,34.05615046]
[1737174128942,34.05615046,225.75,225.62,34.05615046]
[1737174129144,0.063,225.77,225.74,34.05615046]
[1737174129364,34.05615046,225.76,225.56,7.6]
[1737174129682,20.0,225.76,225.45,7.6]
[1737174129844,20.0,225.75,225.45,7.6]
[1737174130046,0.063,225.77,225.47,13.19184235]
[1737174130251,4.4924,225.77,225.47,13.19184235]
[1737174130469,20.0,225.75,225.5,20.0]
[1737174130683,0.063,225.77,225.63,34.05615046]
[1737174130854,0.063,225.77,225.76,34.05615046]
[1737174131173,239.203687,226.1,225.79,20.0]
[1737174131375,13.3099,226.18,225.81,4.3091]
[1737174131579,13.3099,226.18,225.85,20.0]
[1737174131863,6.73429723,226.25,225.89,20.0]
[1737174131864,0.063,226.25,225.89,20.0]
[1737174132051,0.063,226.25,225.9,0.66341746]
[1737174132242,0.063,226.25,225.9,4.79638914]
[1737174132449,0.063,226.25,226.17,34.05615046]
[1737174132660,15.4702,226.24,225.95,0.66331659]
[1737174132845,34.05615046,225.96,225.75,13.19184235]
[1737174133044,34.05615046,225.76,225.75,13.19184235]
[1737174133247,34.05615046,225.76,225.63,17.705775]
[1737174133576,221.9357504,225.67,225.48,13.19184235]
[1737174133777,0.6633,225.66,225.48,13.19184235]
[1737174134081,0.6633,225.66,225.39,8.0]
[1737174134264,14.75198865,225.72,225.27,1.4524487]
[1737174134265,22.10608996,225.7,225.4,0.33413735]
[1737174134475,34.05615046,225.51,225.4,34.39028781]
[1737174134774,34.05615046,225.43,225.36,0.33411513]
[1737174134979,8.98075729,225.5,225.31,0.33468009]
[1737174135184,34.05615046,225.54,225.42,34.05615046]
[1737174135382,6.78912817,225.64,225.45,20.0]
[1737174135586,34.05615046,225.62,225.54,20.0]
[1737174136079,34.05615046,225.62,225.46,0.33360672]
[1737174136080,34.05615046,225.62,225.49,34.05615046]
[1737174136280,34.05615046,225.6,225.52,20.0]
[1737174136450,34.05615046,225.57,225.52,20.0]
[1737174136776,34.05615046,225.55,225.52,20.0]
[1737174136965,34.05615046,225.55,225.48,20.0]
[1737174137370,34.05615046,225.53,225.43,42.03615046]
[1737174137563,34.05615046,225.51,225.44,20.0]
[1737174137759,34.05615046,225.46,225.37,0.03]
[1737174137964,34.05615046,225.38,225.37,0.03]
[1737174138366,20.0,225.35,225.21,47.8]
[1737174138660,34.05615046,225.22,225.21,47.8]
[1737174138860,34.05615046,225.22,225.14,0.03]
[1737174139064,34.05615046,225.18,225.14,0.03]
[1737174139762,34.05615046,225.15,225.14,0.03]
[1737174140077,34.05615046,225.17,225.14,0.03]
[1737174140259,34.05615046,225.21,225.14,0.03]
[1737174140461,34.05615046,225.24,225.14,0.03]
[1737174140697,34.05615046,225.24,225.15,20.0]
[1737174141267,0.83254145,225.38,225.14,0.03]
[1737174141487,34.05615046,225.25,225.17,20.0]
[1737174141786,34.05615046,225.27,225.19,20.0]
[1737174142783,34.05615046,225.21,225.14,0.03]
[1737174142970,34.05615046,225.15,225.14,0.03]
[1737174144879,131.46513194,225.0,224.94,34.39324367]
[1737174145084,131.20103194,225.0,224.94,34.05615046]
[1737174145273,131.20103194,225.0,224.97,20.0]
[1737174145591,131.20103194,225.0,224.94,34.05615046]
[1737174146286,131.20103194,225.0,224.93,60.833]
[1737174146489,34.05615046,224.97,224.93,47.86]
[1737174146694,68.11230092,224.95,224.87,17.763123]
[1737174146883,0.8335415,224.99,224.73,0.33872602]
[1737174147084,34.05615046,224.81,224.73,0.33872602]
[1737174147389,34.05615046,224.81,224.72,12.973]
[1737174147592,34.05615046,224.77,224.72,12.973]
[1737174147895,34.05615046,224.81,224.72,12.973]
[1737174148294,34.05615046,224.95,224.75,20.0]
[1737174148295,34.05615046,224.83,224.75,20.0]
[1737174148484,34.05615046,224.83,224.72,47.02915046]
[1737174148679,34.05615046,224.73,224.71,0.33930627]
[1737174148983,34.05615046,224.77,224.62,0.33977733]
[1737174149189,34.05615046,224.77,224.66,34.05615046]
[1737174149505,34.05615046,224.72,224.62,0.33977733]
[1737174149679,34.05615046,224.66,224.6,47.89]
[1737174149886,34.05615046,224.64,224.6,47.89]
[1737174150067,34.05615046,224.64,224.63,20.0]
[1737174150271,34.05615046,224.64,224.6,47.89]
[1737174150486,0.83459897,224.72,224.63,20.0]
[1737174150685,34.05615046,224.64,224.6,47.89]
[1737174150883,34.05615046,224.62,224.6,47.89]
[1737174151176,34.05615046,224.62,224.6,0.03]
[1737174151987,68.11230092,224.62,224.6,0.03]
[1737174152799,72.56430092,224.62,224.6,0.03]
[1737174152984,0.83499519,224.61,224.6,0.03]
[1737174153188,0.8350778,224.61,224.6,0.03]
[1737174153395,0.8350778,224.61,224.52,0.03]
[1737174153594,34.05615046,224.53,224.52,0.03]
[1737174155713,68.11230092,224.53,224.52,0.03]
[1737174155885,68.94770635,224.53,224.52,0.03]
[1737174156084,68.94770635,224.53,224.39,47.94]
[1737174156293,34.05615046,224.51,224.42,20.0]
[1737174156509,34.05615046,224.43,224.39,47.94]
[1737174156814,34.05615046,224.41,224.39,47.94]
[1737174157184,34.05615046,224.41,224.36,0.03]
[1737174157709,34.05615046,224.37,224.36,0.03]
[1737174158084,34.05615046,224.37,224.19,0.34303459]
[1737174158085,4.4571,224.36,224.15,1.529433]
[1737174158383,68.11230092,224.31,224.05,34.05615046]
[1737174158583,34.05615046,224.14,224.01,34.08615046]
[1737174158800,1.65218982,224.3,224.08,34.05615046]
[1737174159009,1.65218982,224.3,224.13,4.4916]
[1737174159313,34.05615046,224.18,224.13,4.4916]
[1737174159616,34.05615046,224.2,224.13,4.4916]
[1737174159786,34.05615046,224.24,224.13,38.54775046]
[1737174159987,34.05615046,224.26,224.15,34.05615046]
[1737174160186,34.05615046,224.28,224.17,34.05615046]
[1737174160397,34.05615046,224.3,224.22,20.0]
[1737174160600,34.05615046,224.3,224.21,34.05615046]
[1737174160899,12.5118,224.43,224.28,20.0]
[1737174160900,34.05615046,224.36,224.28,20.0]
[1737174161082,34.05615046,224.36,224.3,20.0]
[1737174161502,34.05615046,224.36,224.25,34.05615046]
[1737174161503,34.05615046,224.39,224.31,20.0]
[1737174162019,34.05615046,224.39,224.33,24.4575]
[1737174162314,34.05615046,224.39,224.18,34.05615046]
[1737174162315,34.05615046,224.35,224.22,34.05615046]
[1737174162490,34.05615046,224.31,224.2,34.05615046]
[1737174163211,34.05615046,224.31,224.23,20.0]
[1737174163516,34.05615046,224.31,224.22,34.05615046]
[1737174163820,34.05615046,224.31,224.13,0.03]
[1737174163821,34.05615046,224.31,224.2,34.05615046]
[1737174164187,34.05615046,224.37,224.27,34.05615046]
[1737174164393,34.05615046,224.39,224.27,34.05615046]
[1737174164597,34.05615046,224.37,224.3,20.0]
[1737174165415,34.05615046,224.35,224.25,34.05615046]
[1737174165618,34.05615046,224.33,224.21,34.05615046]
[1737174166000,34.05615046,224.33,224.24,20.0]
[1737174166316,34.05615046,224.31,224.19,34.05615046]
[1737174166487,0.83615152,224.39,224.25,34.05615046]
[1737174166696,34.05615046,224.36,224.28,20.0]
[1737174167523,34.05615046,224.36,224.29,4.4585]
[1737174167683,34.05615046,224.4,224.32,20.0]
[1737174167896,34.05615046,224.44,224.36,20.0]
[1737174168107,34.05615046,224.42,224.31,34.05615046]
[1737174168321,34.05615046,224.4,224.29,38.51465046]
[1737174168506,34.05615046,224.36,224.29,4.4585]
[1737174169198,0.8358541,224.48,224.3,20.0]
[1737174169408,34.05615046,224.38,224.3,20.0]
[1737174170107,34.05615046,224.38,224.27,34.05615046]
[1737174170420,34.05615046,224.38,224.3,20.0]
[1737174171114,34.05615046,224.34,224.25,34.05615046]
[1737174171802,34.05615046,224.34,224.28,20.0]
[1737174171988,34.05615046,224.32,224.21,34.05615046]
[1737174173014,34.05615046,224.32,224.24,20.0]
[1737174173990,34.05615046,224.32,224.25,4.4593]
[1737174174387,34.05615046,224.34,224.26,20.0]
[1737174175122,34.05615046,224.32,224.25,4.4893]
[1737174175622,34.05615046,224.28,224.25,0.03]
[1737174175930,34.05615046,224.26,224.25,0.03]
[1737174176501,34.05615046,224.26,224.13,0.03]
[1737174176502,20.0,224.23,224.13,0.03]
[1737174176704,34.05615046,224.14,224.13,0.03]
[1737174176905,34.05615046,224.18,224.14,4.4614]
[1737174177096,34.05615046,224.25,224.17,20.0]
[1737174177310,17.060217,224.39,224.19,241.9357504]
[1737174177506,12.9644,224.57,224.2,0.34244159]
[1737174177916,17.060217,224.62,224.31,20.0]
[1737174178128,0.83485868,224.7,224.32,13.68136038]
[1737174178450,34.05615046,224.63,224.53,34.05615046]
[1737174178733,0.83508673,224.62,224.55,34.05615046]
[1737174178935,34.05615046,224.58,224.33,0.34158223]
[1737174179111,0.83532531,224.57,224.5,34.05615046]
[1737174179312,0.83525313,224.6,224.54,34.05615046]
[1737174179525,0.83509337,224.6,224.57,34.05615046]
[1737174179712,0.8350381,224.59,224.55,34.05615046]
[1737174179914,0.83513205,224.61,224.57,34.05615046]
[1737174180428,0.83513205,224.61,224.51,34.05615046]
[1737174180429,0.83513205,224.61,224.59,34.05615046]
[1737174180644,0.81576205,224.62,224.59,34.05615046]
[1737174180808,35.70695792,224.61,224.51,34.05615046]
[1737174181006,35.70695792,224.61,224.4,34.05615046]
[1737174181007,20.0,224.58,224.49,34.05615046]
[1737174181207,0.83540938,224.57,224.49,34.05615046]
[1737174181512,0.83531678,224.64,224.41,0.34214881]
[1737174181713,34.05615046,224.61,224.51,34.05615046]
[1737174181934,1.65114024,224.6,224.51,34.05615046]
[1737174182141,1.65110108,224.59,224.51,34.05615046]
[1737174182347,1.65112902,224.58,224.49,34.05615046]
[1737174182545,1.6511606,224.57,224.49,34.05615046]
[1737174182844,34.05615046,224.51,224.39,34.05615046]
[1737174183050,34.05615046,224.47,224.36,34.05615046]
[1737174183219,34.05615046,224.45,224.34,34.05615046]
[1737174183416,1.65166737,224.44,224.41,34.05615046]
[1737174183623,34.05615046,224.51,224.41,34.05615046]
[1737174183624,0.83568244,224.5,224.41,34.05615046]
[1737174183835,0.81576205,224.49,224.41,34.05615046]
[1737174184047,20.83571841,224.48,224.41,34.05615046]
[1737174184253,20.83571841,224.48,224.39,34.05615046]
[1737174184552,0.83571841,224.48,224.43,34.05615046]
[1737174185136,0.83571841,224.48,224.41,34.05615046]
[1737174185323,0.83571841,224.48,224.39,34.05615046]
[1737174185848,34.05615046,224.43,224.33,34.05615046]
[1737174186055,20.0,224.4,224.31,34.05615046]
[1737174186226,0.83601699,224.39,224.31,34.05615046]
[1737174186427,20.0,224.38,224.31,34.05615046]
[1737174186739,1.65176907,224.4,224.35,34.05615046]
[1737174187048,0.81576205,224.4,224.37,34.05615046]
[1737174188150,0.83580553,224.44,224.39,34.05615046]
[1737174188345,0.83562921,224.5,224.41,34.05615046]
[1737174188655,1.65139126,224.5,224.41,34.05615046]
[1737174188955,1.65139126,224.5,224.43,34.05615046]
[1737174189152,1.65139126,224.5,224.47,34.05615046]
[1737174189345,1.65139126,224.5,224.4,34.05615046]
[1737174189346,0.81576205,224.5,224.49,34.05615046]
[1737174189551,0.83549455,224.54,224.49,34.05615046]
[1737174189727,0.83533351,224.6,224.52,34.05615046]
[1737174189930,1.71395825,224.58,224.51,34.05615046]
[1737174190654,21.71395825,224.58,224.51,34.05615046]
[1737174191121,1.71395825,224.58,224.51,34.05615046]
[1737174191321,34.05615046,224.57,224.47,34.05615046]
[1737174191522,34.05615046,224.51,224.41,34.05615046]
[1737174191722,20.0,224.48,224.41,34.05615046]
[1737174191930,0.83568253,224.47,224.41,34.05615046]
[1737174192426,0.83568253,224.47,224.42,2.92896834]
[1737174193736,1.65144832,224.48,224.45,34.05615046]
[1737174194045,0.83547732,224.56,224.47,34.05615046]
[1737174194248,0.83547732,224.56,224.52,34.05615046]
[1737174194753,0.063,224.58,224.4,34.05615046]
[1737174194754,0.063,224.58,224.57,20.0]
[1737174194950,0.063,224.58,224.57,88.11230092]
[1737174195155,0.83476964,224.72,224.57,88.11230092]
[1737174195325,0.83476964,224.72,224.65,34.05615046]
[1737174195526,1.65053169,224.72,224.54,20.0]
[1737174195744,0.83466091,224.77,224.55,0.34096484]
[1737174195946,1.65042443,224.76,224.54,20.0]
[1737174196730,1.65042443,224.76,224.69,34.05615046]
[1737174196930,34.05615046,224.73,224.63,34.05615046]
[1737174197138,20.0,224.7,224.65,34.05615046]
[1737174197664,0.83470151,224.69,224.64,34.05615046]
[1737174198042,0.83470151,224.69,224.54,20.0]
[1737174198043,0.83473927,224.69,224.6,34.05615046]
[1737174198361,20.0,224.67,224.58,34.05615046]
[1737174198553,0.83494388,224.66,224.58,34.05615046]
[1737174198756,20.0,224.65,224.58,34.05615046]
[1737174199067,0.83494579,224.67,224.62,34.05615046]
[1737174199766,34.05615046,224.78,224.65,34.05615046]
[1737174200075,34.05615046,224.82,224.74,34.05615046]
[1737174200241,0.8343529,224.81,224.74,34.05615046]
[1737174200442,34.05615046,224.8,224.7,34.05615046]
[1737174200661,0.83447503,224.79,224.7,34.05615046]
[1737174201154,0.83447503,224.79,224.72,34.05615046]
[1737174201667,0.8344004,224.78,224.72,34.05615046]
[1737174202170,0.83440193,224.83,224.76,34.05615046]
[1737174202349,0.83440193,224.83,224.78,34.05615046]
[1737174202756,13.06959395,224.84,224.78,34.05615046]
[1737174203150,0.89718458,224.85,224.78,34.05615046]
[1737174203476,0.89718458,224.85,224.73,34.05615046]
[1737174203477,0.063,224.85,224.84,34.05615046]
[1737174203842,0.063,224.85,224.82,34.05615046]
[1737174204163,0.063,224.85,224.8,34.05615046]
[1737174204340,0.063,224.85,224.82,34.05615046]
[1737174206278,0.063,224.85,224.78,34.05615046]
[1737174206447,34.05615046,224.84,224.74,34.05615046]
[1737174206647,0.063,224.85,224.82,34.05615046]
[1737174206956,0.063,224.85,224.84,34.05615046]
[1737174208350,0.063,224.85,224.82,34.05615046]
[1737174208973,0.063,224.85,224.76,20.0]
[1737174209181,34.11915046,224.85,224.75,34.05615046]
[1737174209369,0.063,224.85,224.77,34.05615046]
[1737174209670,34.05615046,224.81,224.71,34.05615046]
[1737174209875,0.8343742,224.8,224.71,34.05615046]
[1737174210073,0.89737858,224.85,224.77,34.05615046]
[1737174210373,34.95352904,224.85,224.75,34.05615046]
[1737174210879,34.05615046,224.83,224.73,34.05615046]
[1737174211084,34.05615046,224.81,224.71,34.05615046]
[1737174211263,0.83442806,224.8,224.71,34.05615046]
[1737174211582,34.05615046,224.79,224.69,34.05615046]
[1737174211879,34.05615046,224.75,224.65,34.05615046]
[1737174212178,12.8473,224.65,224.46,1.63513113]
[1737174212362,34.05615046,224.51,224.46,1.63513113]
[1737174212566,0.83537305,224.5,224.39,34.05615046]
[1737174212763,34.05615046,224.46,224.31,0.03]
[1737174212965,34.05615046,224.44,224.34,34.05615046]
[1737174213169,34.05615046,224.42,224.32,34.05615046]
[1737174213471,34.05615046,224.42,224.34,34.05615046]
[1737174213472,0.83582101,224.42,224.34,34.05615046]
[1737174213783,34.05615046,224.39,224.31,0.03]
[1737174213949,0.83591965,224.38,224.31,0.03]
[1737174215363,0.83592603,224.37,224.31,0.03]
[1737174216082,0.83592561,224.39,224.31,0.03]
[1737174216280,34.05615046,224.36,224.31,0.03]
[1737174216654,34.05615046,224.38,224.31,0.03]
[1737174216853,0.83591855,224.37,224.31,0.03]
[1737174217055,0.83591654,224.43,224.33,34.05615046]
[1737174217559,34.05615046,224.42,224.33,34.05615046]
[1737174217761,0.8358122,224.41,224.33,34.05615046]
[1737174218178,0.83579652,224.5,224.39,34.05615046]
[1737174218386,34.89194698,224.5,224.41,34.05615046]
[1737174219059,0.83550538,224.53,224.46,34.05615046]
[1737174219273,0.8353591,224.55,224.48,34.05615046]
[1737174219654,0.8352452,224.56,224.48,34.05615046]
[1737174220100,34.05615046,224.5,224.31,0.03]
[1737174220389,34.05615046,224.46,224.38,34.05615046]
[1737174220561,0.83565769,224.45,224.38,33.55615046]
[1737174220880,0.83565612,224.48,224.4,34.05615046]
[1737174221683,0.83565612,224.48,224.38,34.05615046]
[1737174221882,20.0,224.41,224.31,0.03]
[1737174222085,0.81576205,224.47,224.31,0.03]
[1737174222086,34.89203655,224.4,224.31,0.03]
[1737174222384,34.89203655,224.4,224.32,34.05615046]
[1737174222583,34.89205163,224.46,224.36,34.05615046]
[1737174222882,39.34725163,224.46,224.31,0.03]
[1737174223066,34.05615046,224.44,224.34,34.05615046]
[1737174223269,0.83577638,224.43,224.34,34.05615046]
[1737174223454,0.83576125,224.44,224.36,34.05615046]
[1737174223873,0.83567209,224.5,224.43,34.05615046]
[1737174224171,0.83567209,224.53,224.45,34.05615046]
[1737174224369,34.89148632,224.54,224.43,34.05615046]
[1737174225565,34.89148632,224.54,224.45,34.05615046]
[1737174226091,54.05615046,224.56,224.45,34.05615046]
[1737174226275,0.83528158,224.55,224.45,34.05615046]
[1737174226478,0.063,224.58,224.51,34.05615046]
[1737174226687,0.063,224.58,224.53,34.05615046]
[1737174226988,0.063,224.58,224.57,34.05615046]
[1737174227488,0.063,224.58,224.56,34.05615046]
[1737174228872,0.83474714,224.77,224.6,20.0]
[1737174229169,34.05615046,224.8,224.71,34.05615046]
[1737174229369,0.83439971,224.79,224.71,34.05615046]
[1737174229676,0.063,224.85,224.77,34.05615046]
[1737174230376,0.063,224.85,224.79,34.05615046]
[1737174230564,0.063,224.85,224.81,34.05615046]
[1737174230967,34.05615046,224.83,224.73,34.05615046]
[1737174231186,34.05615046,224.81,224.71,34.05615046]
[1737174231480,0.063,224.85,224.77,34.05615046]
[1737174231690,0.063,224.85,224.79,34.05615046]
[1737174232397,0.063,224.85,224.81,34.05615046]
[1737174233467,0.063,224.85,224.83,34.05615046]
[1737174233801,34.05615046,224.84,224.73,34.05615046]
[1737174233966,34.05615046,224.81,224.71,34.05615046]
[1737174234467,0.063,224.85,224.76,34.05615046]
[1737174234994,34.05615046,224.84,224.74,34.05615046]
[1737174235179,34.05615046,224.82,224.72,34.05615046]
[1737174235386,34.05615046,224.8,224.7,34.05615046]
[1737174235791,34.05615046,224.8,224.72,34.05615046]
[1737174236173,0.063,224.82,224.79,34.05615046]
[1737174237588,0.063,224.82,224.77,34.05615046]
[1737174237793,0.063,224.82,224.81,34.05615046]
[1737174238103,0.063,224.82,224.79,34.05615046]
[1737174238301,0.063,224.82,224.73,20.0]
[1737174238472,0.063,224.82,224.74,0.33916633]
[1737174238675,0.063,224.82,224.81,34.05615046]
[1737174239691,0.063,224.82,224.81,68.11230092]
[1737174240201,0.063,224.85,224.84,20.0]
[1737174240397,0.063,224.85,224.84,88.11230092]
[1737174241814,0.063,224.85,224.84,34.05615046]
[1737174242191,0.063,224.85,224.82,34.05615046]
[1737174243515,0.063,224.85,224.8,34.05615046]
[1737174243997,34.05615046,224.81,224.63,0.33956525]
[1737174244199,34.05615046,224.74,224.63,34.05615046]
[1737174244379,34.05615046,224.74,224.65,34.05615046]
[1737174244581,34.05615046,224.76,224.67,34.05615046]
[1737174244807,34.05615046,224.78,224.69,34.05615046]
[1737174245014,34.05615046,224.82,224.72,34.05615046]
[1737174245183,34.05615046,224.82,224.62,34.05615046]
[1737174245184,34.05615046,224.79,224.69,34.05615046]
[1737174245582,34.05615046,224.81,224.71,34.05615046]
[1737174246095,34.05615046,224.83,224.73,34.05615046]
[1737174246299,38.50395046,224.83,224.73,34.05615046]
[1737174246683,34.05615046,224.81,224.74,20.0]
[1737174247011,34.05615046,224.79,224.69,34.05615046]
[1737174247400,4.4478,224.83,224.75,34.05615046]
[1737174247723,0.83415945,224.82,224.73,34.05615046]
[1737174247891,4.4483,224.8,224.71,34.05615046]
[1737174248308,20.0,224.78,224.73,0.03]
[1737174248507,0.83441507,224.78,224.73,0.03]
[1737174248712,54.05615046,224.77,224.73,0.03]
[1737174248886,54.89061019,224.77,224.73,0.03]
[1737174249093,34.89061019,224.77,224.73,0.03]
[1737174249492,34.05615046,224.79,224.73,0.03]
[1737174249723,54.05615046,224.77,224.73,0.03]
[1737174249894,34.05615046,224.75,224.73,0.03]
[1737174250094,5.28404018,224.74,224.73,0.03]
[1737174250712,4.4495,224.74,224.73,0.03]
[1737174251093,20.0,224.71,224.59,34.05615046]
[1737174251413,34.05615046,224.63,224.53,34.05615046]
[1737174251602,34.05615046,224.67,224.57,34.05615046]
[1737174252115,15.5804,224.64,224.51,34.05615046]
[1737174252423,34.05615046,224.73,224.59,34.05615046]
[1737174252424,4.451,224.67,224.59,34.05615046]
[1737174252622,5.28581594,224.67,224.48,20.0]
[1737174252923,39.3419664,224.67,224.58,34.05615046]
[1737174253121,34.05615046,224.61,224.52,34.05615046]
[1737174253283,34.05615046,224.61,224.5,34.05615046]
[1737174253602,0.83501573,224.6,224.44,48.0]
[1737174253914,0.83505466,224.66,224.55,34.05615046]
[1737174254115,34.05615046,224.6,224.51,34.05615046]
[1737174254309,34.05615046,224.58,224.49,34.05615046]
[1737174254508,0.83523886,224.57,224.47,34.05615046]
[1737174254816,34.05615046,224.56,224.47,34.05615046]
[1737174255019,0.8352908,224.55,224.47,34.05615046]
[1737174255222,34.05615046,224.6,224.51,34.05615046]
[1737174255416,0.83516292,224.59,224.49,34.05615046]
[1737174255605,34.05615046,224.58,224.49,34.05615046]
[1737174255906,0.83519715,224.57,224.49,34.05615046]
[1737174256423,4.4529,224.57,224.51,34.05615046]
[1737174256597,4.4526,224.59,224.51,34.05615046]
[1737174256916,4.4523,224.61,224.53,34.05615046]
[1737174257222,5.28739467,224.61,224.53,34.05615046]
[1737174257611,4.4523,224.61,224.53,34.05615046]
[1737174258922,0.83504867,224.62,224.56,34.05615046]
[1737174259113,17.4444,224.65,224.56,34.05615046]
[1737174259302,17.4444,224.65,224.44,48.0]
[1737174259303,34.05615046,224.62,224.52,34.05615046]
[1737174259500,20.0,224.57,224.5,34.05615046]
[1737174259709,0.83520036,224.56,224.5,34.05615046]
[1737174260007,4.4533,224.55,224.48,34.05615046]
[1737174260208,34.05615046,224.62,224.54,34.05615046]
[1737174260417,24.1216,224.65,224.54,34.05615046]
[1737174260418,34.05615046,224.64,224.54,34.05615046]
[1737174260614,20.0,224.61,224.53,0.03]
[1737174260801,54.89129554,224.6,224.53,0.03]
[1737174261401,34.05615046,224.56,224.53,0.03]
[1737174261623,0.83532221,224.55,224.53,0.03]
[1737174261825,34.05615046,224.54,224.42,34.05615046]
[1737174262006,34.05615046,224.46,224.36,34.05615046]
[1737174262209,0.83563805,224.45,224.36,34.05615046]
[1737174262628,34.05615046,224.42,224.35,0.03]
[1737174262819,0.83584344,224.41,224.35,0.03]
[1737174263520,0.81576205,224.45,224.37,34.05615046]
[1737174263725,34.89182764,224.44,224.35,34.08615046]
[1737174263922,34.05615046,224.4,224.35,0.03]
[1737174264219,20.0,224.34,224.33,0.0001]
[1737174264432,20.83622508,224.34,224.28,0.03]
[1737174264604,34.05615046,224.29,224.28,0.0001]
[1737174264810,35.70834573,224.29,224.28,0.0001]
[1737174265321,0.83643322,224.29,224.28,0.0001]
[1737174265515,0.83616452,224.3,224.28,0.0001]
[1737174266210,34.05615046,224.37,224.28,0.0001]
[1737174266425,4.4568,224.38,224.29,34.05615046]
[1737174266712,0.83595448,224.37,224.29,34.05615046]
[1737174266928,4.4568,224.38,224.29,34.05615046]
[1737174267234,0.83594164,224.37,224.29,34.05615046]
[1737174267531,34.05615046,224.37,224.28,0.0001]
[1737174267719,34.05615046,224.39,224.29,34.05615046]
[1737174267912,0.83593147,224.38,224.31,34.05615046]
[1737174268112,51.88316846,224.41,224.33,34.05615046]
[1737174268113,0.83590656,224.41,224.33,34.05615046]